fUST/lending_fUST_20241108
["ID","MTS","AMOUNT","RATE_DAILY","PERIOD"]
[341642996,1731055846178,-500.0,0.00023013,2]
[341642997,1731055846187,-500.0,0.00023013,2]
[341642998,1731055846198,-500.0,0.00023013,2]
[341642999,1731055846207,-151.0,0.00023013,7]
[341643000,1731055846216,-877.146847,0.00023013,7]
[341643001,1731055846226,-877.146847,0.00023013,7]
[341643002,1731055846236,-556.87,0.00023013,2]
[341643003,1731055846246,-894.925862,0.00023013,7]
[341643004,1731055846256,-894.925862,0.00023013,7]
[341643005,1731055846266,-456.716636,0.00023013,7]
[341643006,1731055846276,-456.716636,0.00023013,7]
[341643007,1731055846286,-153.166935,0.00023013,7]
[341643008,1731055846296,-500.0,0.00023013,2]
[341643009,1731055846305,-174.73132111,0.00023013,2]
[341643010,1731055846316,-151.0,0.00023013,7]
[341643011,1731055846326,-500.0,0.00023013,2]
[341643012,1731055846335,-151.0,0.00023013,7]
[341643013,1731055846345,-1556.203876,0.00023013,7]
[341643014,1731055846355,-151.0,0.00023013,7]
[341643015,1731055846365,-500.0,0.00023013,2]
[341643016,1731055846375,-1556.203876,0.00023013,7]
[341643017,1731055846384,-151.0,0.00023013,7]
[341643018,1731055846393,-151.0,0.00023013,7]
[341643019,1731055846402,-500.0,0.00023013,2]
[341643020,1731055846411,-153.371672,0.00023013,7]
[341643021,1731055846421,-500.0,0.00023013,2]
[341643022,1731055846431,-500.0,0.00023013,2]
[341643023,1731055846440,-910.19,0.00023013,2]
[341643024,1731055846451,-500.0,0.00023013,2]
[341643025,1731055846460,-500.0,0.00023013,2]
[341643026,1731055846470,-404.889751,0.00023013,7]
[341643027,1731055846481,-553.56,0.00023013,2]
[341643028,1731055846491,-379.599495,0.00023013,7]
[341643029,1731055846501,-404.889751,0.00023013,7]
[341643030,1731055846511,-379.599495,0.00023013,7]
[341643031,1731055846521,-987.64,0.00023013,2]
[341643032,1731055846531,-307.188296,0.00023013,7]
[341643035,1731055846620,-307.188296,0.00023013,7]
[341643036,1731055846641,-500.0,0.00023013,2]
[341643037,1731055846654,-151.0,0.00023013,7]
[341643038,1731055846665,-500.0,0.00023013,2]
[341643039,1731055846675,-500.0,0.00023013,2]
[341643040,1731055846685,-500.0,0.00023013,2]
[341643041,1731055846695,-683.0,0.00023013,2]
[341643042,1731055846705,-500.0,0.00023013,2]
[341643043,1731055846715,-500.0,0.00023013,2]
[341643044,1731055846725,-500.0,0.00023013,2]
[341643045,1731055846736,-684.63,0.00023013,2]
[341643046,1731055846745,-500.0,0.00023013,2]
[341643047,1731055846755,-151.0,0.00023013,7]
[341643048,1731055846765,-500.0,0.00023013,2]
[341643049,1731055846774,-1000.37,0.00023013,2]
[341643050,1731055846783,-182.178575,0.00023013,7]
[341643051,1731055846792,-500.0,0.00023013,2]
[341643052,1731055846802,-182.178575,0.00023013,7]
[341643053,1731055846811,-500.0,0.00023013,2]
[341643054,1731055846820,-151.0,0.00023013,7]
[341643055,1731055846829,-151.0,0.00023013,7]
[341643056,1731055846839,-4039.9,0.00023013,2]
[341643057,1731055846848,-599.6,0.00023013,2]
[341643058,1731055846858,-500.0,0.00023013,2]
[341643059,1731055846867,-411.05155645,0.00023013,2]
[341643060,1731055846875,-774.9,0.00023013,2]
[341643061,1731055846885,-500.0,0.00023013,2]
[341643062,1731055846895,-188.14129703,0.00023013,2]
[341643063,1731055846904,-500.0,0.00023013,2]
[341643064,1731055846913,-151.0,0.00023013,7]
[341643065,1731055846922,-342.790446,0.00023013,7]
[341643066,1731055846931,-500.0,0.00023013,2]
[341643067,1731055846940,-500.0,0.00023013,2]
[341643068,1731055846949,-342.790446,0.00023013,7]
[341643069,1731055846958,-151.0,0.00023013,7]
[341643070,1731055846967,-388.683511,0.00023013,7]
[341643071,1731055846976,-495.42779697,0.00023013,2]
[341643072,1731055846986,-388.683511,0.00023013,7]
[341643073,1731055846998,-500.0,0.00023013,2]
[341643074,1731055847007,-500.0,0.00023013,2]
[341643075,1731055847016,-157.200074,0.00023013,7]
[341643076,1731055847025,-157.200074,0.00023013,7]
[341643077,1731055847034,-509.84,0.00023013,2]
[341643078,1731055847043,-190.608239,0.00023013,7]
[341643079,1731055847052,-500.0,0.00023013,2]
[341643080,1731055847061,-151.0,0.00023013,7]
[341643081,1731055847070,-190.608239,0.00023013,7]
[341643082,1731055847079,-500.0,0.00023013,2]
[341643083,1731055847089,-500.0,0.00023013,2]
[341643084,1731055847098,-151.0,0.00023013,7]
[341643085,1731055847107,-500.0,0.00023013,2]
[341643086,1731055847116,-500.0,0.00023013,2]
[341643087,1731055847125,-500.0,0.00023013,2]
[341643088,1731055847135,-1236.91,0.00023013,2]
[341643089,1731055847144,-151.0,0.00023013,7]
[341643090,1731055847153,-4739.43,0.00023013,2]
[341643091,1731055847163,-151.0,0.00023013,7]
[341643092,1731055847172,-500.0,0.00023013,2]
[341643093,1731055847181,-212.925336,0.00023013,7]
[341643094,1731055847190,-500.0,0.00023013,2]
[341643095,1731055847200,-3240.68,0.00023013,2]
[341643096,1731055847209,-500.0,0.00023013,2]
[341643097,1731055847218,-500.0,0.00023013,2]
[341643098,1731055847228,-500.0,0.00023013,2]
[341643099,1731055847238,-1106.55,0.00023013,2]
[341643100,1731055847247,-9681.86,0.00023013,2]
[341643101,1731055847256,-322.36548605,0.00023013,2]
[341643102,1731055847265,-5122.09,0.00023013,2]
[341643103,1731055847275,-78592.66137647,0.000231,2]
[341643104,1731055847284,-2688.14560157,0.00023187,2]
[341643105,1731055847294,-500.0,0.00023287,2]
[341643106,1731055847303,-282.0,0.00023287,2]
[341643107,1731055847312,-500.0,0.00023287,2]
[341643108,1731055847322,-500.0,0.00023287,2]
[341643109,1731055847332,-500.0,0.00023287,2]
[341643110,1731055847341,-500.0,0.00023287,2]
[341643111,1731055847350,-500.0,0.00023287,2]
[341643112,1731055847359,-500.0,0.00023287,2]
[341643113,1731055847368,-457.74302646,0.00023287,2]
[341643114,1731055847378,-256.1199613,0.00023287,2]
[341643115,1731055847387,-151.0,0.00023287,7]
[341643116,1731055847395,-500.0,0.00023287,2]
[341643117,1731055847406,-151.0,0.00023287,7]
[341643118,1731055847415,-151.0,0.00023287,7]
[341643119,1731055847424,-151.0,0.00023287,7]
[341643120,1731055847434,-500.0,0.00023287,2]
[341643121,1731055847445,-500.0,0.00023287,2]
[341643122,1731055847456,-746.4,0.00023287,2]
[341643123,1731055847465,-151.0,0.00023287,7]
[341643124,1731055847475,-305.86245,0.00023287,7]
[341643125,1731055847485,-305.86245,0.00023287,7]
[341643126,1731055847495,-500.0,0.00023287,2]
[341643127,1731055847504,-263.2837069,0.00023287,2]
[341643128,1731055847514,-500.0,0.00023287,2]
[341643129,1731055847523,-151.0,0.00023287,7]
[341643130,1731055847533,-151.0,0.00023287,7]
[341643131,1731055847542,-500.0,0.00023287,2]
[341643132,1731055847552,-151.0,0.00023287,7]
[341643133,1731055847561,-151.0,0.00023287,7]
[341643134,1731055847570,-500.0,0.00023287,2]
[341643135,1731055847579,-151.0,0.00023287,7]
[341643136,1731055847588,-500.0,0.00023287,2]
[341643137,1731055847597,-500.0,0.00023287,2]
[341643138,1731055847606,-1556.05,0.00023287,2]
[341643139,1731055847615,-570.56,0.00023287,2]
[341643140,1731055847624,-270.13826624,0.00023287,2]
[341643141,1731055847634,-495.94192153,0.00023287,2]
[341643142,1731055847643,-323.85834511,0.00023287,2]
[341643143,1731055847655,-625.89,0.00023287,2]
[341643144,1731055847664,-500.0,0.00023287,2]
[341643145,1731055847673,-793.11,0.00023287,2]
[341643146,1731055847682,-500.0,0.00023287,2]
[341643147,1731055847692,-1474.44,0.00023287,2]
[341643148,1731055847701,-500.0,0.00023287,2]
[341643149,1731055847711,-500.0,0.00023287,2]
[341643150,1731055847721,-500.0,0.00023287,2]
[341643151,1731055847731,-500.0,0.00023287,2]
[341643152,1731055847740,-722.59,0.00023287,2]
[341643153,1731055847750,-524.93234747,0.00023287,2]
[341643154,1731055847759,-500.0,0.00023287,2]
[341643155,1731055847768,-500.0,0.00023287,2]
[341643156,1731055847779,-556.87,0.00023287,2]
[341643157,1731055847788,-456.716636,0.00023287,7]
[341643158,1731055847797,-456.716636,0.00023287,7]
[341643159,1731055847806,-314.93712424,0.00023287,2]
[341643160,1731055847816,-151.0,0.00023287,7]
[341643161,1731055847825,-401.68108329,0.00023287,2]
[341643162,1731055847835,-151.0,0.00023287,7]
[341643163,1731055847844,-1556.203876,0.00023287,7]
[341643164,1731055847854,-500.0,0.00023287,2]
[341643165,1731055847863,-1556.203876,0.00023287,7]
[341643166,1731055847872,-151.0,0.00023287,7]
[341643167,1731055847882,-151.0,0.00023287,7]
[341643168,1731055847891,-282.07181707,0.00023287,2]
[341643169,1731055847901,-500.0,0.00023287,2]
[341643170,1731055847910,-910.19,0.00023287,2]
[341643171,1731055847919,-500.0,0.00023287,2]
[341643172,1731055847929,-500.0,0.00023287,2]
[341643173,1731055847938,-404.889751,0.00023287,7]
[341643174,1731055847948,-553.56,0.00023287,2]
[341643175,1731055847957,-379.599495,0.00023287,7]
[341643176,1731055847966,-404.889751,0.00023287,7]
[341643177,1731055847976,-379.599495,0.00023287,7]
[341643178,1731055847986,-987.64,0.00023287,2]
[341643179,1731055847995,-307.188296,0.00023287,7]
[341643180,1731055848004,-307.188296,0.00023287,7]
[341643181,1731055848013,-500.0,0.00023287,2]
[341643182,1731055848023,-500.0,0.00023287,2]
[341643183,1731055848032,-601.105262,0.00023287,7]
[341643184,1731055848041,-1270.564209,0.00023287,7]
[341643185,1731055848050,-500.0,0.00023287,2]
[341643186,1731055848059,-601.105262,0.00023287,7]
[341643187,1731055848068,-500.0,0.00023287,2]
[341643188,1731055848077,-683.0,0.00023287,2]
[341643189,1731055848087,-500.0,0.00023287,2]
[341643190,1731055848096,-500.0,0.00023287,2]
[341643191,1731055848106,-500.0,0.00023287,2]
[341643192,1731055848115,-684.63,0.00023287,2]
[341643193,1731055848124,-500.0,0.00023287,2]
[341643194,1731055848134,-151.0,0.00023287,7]
[341643195,1731055848143,-416.907265,0.00023287,7]
[341643196,1731055848152,-273.92563213,0.00023287,2]
[341643197,1731055848161,-1000.37,0.00023287,2]
[341643198,1731055848170,-416.907265,0.00023287,7]
[341643199,1731055848180,-182.178575,0.00023287,7]
[341643200,1731055848190,-500.0,0.00023287,2]
[341643201,1731055848198,-182.178575,0.00023287,7]
[341643202,1731055848207,-500.0,0.00023287,2]
[341643203,1731055848216,-151.0,0.00023287,7]
[341643204,1731055848225,-151.0,0.00023287,7]
[341643205,1731055848235,-151.0,0.00023287,7]
[341643206,1731055848244,-4039.9,0.00023287,2]
[341643207,1731055848253,-599.6,0.00023287,2]
[341643208,1731055848262,-500.0,0.00023287,2]
[341643209,1731055848270,-774.9,0.00023287,2]
[341643210,1731055848279,-500.0,0.00023287,2]
[341643211,1731055848288,-151.0,0.00023287,7]
[341643212,1731055848297,-342.790446,0.00023287,7]
[341643213,1731055848307,-500.0,0.00023287,2]
[341643214,1731055848316,-500.0,0.00023287,2]
[341643215,1731055848325,-342.790446,0.00023287,7]
[341643216,1731055848334,-388.683511,0.00023287,7]
[341643217,1731055848343,-388.683511,0.00023287,7]
[341643218,1731055848352,-500.0,0.00023287,2]
[341643219,1731055848361,-500.0,0.00023287,2]
[341643220,1731055848370,-157.200074,0.00023287,7]
[341643221,1731055848379,-157.200074,0.00023287,7]
[341643222,1731055848388,-509.84,0.00023287,2]
[341643223,1731055848397,-500.0,0.00023287,2]
[341643224,1731055848406,-190.608239,0.00023287,7]
[341643225,1731055848415,-151.0,0.00023287,7]
[341643226,1731055848425,-190.608239,0.00023287,7]
[341643227,1731055848433,-500.0,0.00023287,2]
[341643228,1731055848443,-500.0,0.00023287,2]
[341643229,1731055848452,-213.83237,0.00023287,7]
[341643230,1731055848462,-242.32908628,0.00023287,2]
[341643231,1731055848472,-500.0,0.00023287,2]
[341643232,1731055848484,-500.0,0.00023287,2]
[341643233,1731055848493,-1236.91,0.00023287,2]
[341643234,1731055848503,-151.0,0.00023287,7]
[341643235,1731055848513,-4739.43,0.00023287,2]
[341643236,1731055848523,-151.0,0.00023287,7]
[341643237,1731055848533,-500.0,0.00023287,2]
[341643238,1731055848543,-500.0,0.00023287,2]
[341643239,1731055848552,-3240.68,0.00023287,2]
[341643240,1731055848561,-500.0,0.00023287,2]
[341643241,1731055848571,-500.0,0.00023287,2]
[341643242,1731055848580,-500.0,0.00023287,2]
[341643243,1731055848589,-1106.55,0.00023287,2]
[341643244,1731055848599,-9681.86,0.00023287,2]
[341643245,1731055848690,-5122.09,0.00023287,2]
[341643246,1731055848700,-500.0,0.00023288,2]
[341643247,1731055848709,-500.0,0.00023288,2]
[341643248,1731055848718,-500.0,0.00023288,2]
[341643249,1731055848733,-500.0,0.00023288,2]
[341643250,1731055848743,-500.0,0.00023288,2]
[341643251,1731055848752,-500.0,0.00023288,2]
[341643252,1731055848762,-500.0,0.00023288,2]
[341643253,1731055848771,-500.0,0.00023288,2]
[341643254,1731055848780,-500.0,0.00023288,2]
[341643255,1731055848790,-500.0,0.00023288,2]
[341643256,1731055848799,-500.0,0.00023288,2]
[341643257,1731055848808,-500.0,0.00023288,2]
[341643258,1731055848817,-500.0,0.00023288,2]
[341643259,1731055848827,-500.0,0.00023288,2]
[341643260,1731055848837,-400.0,0.00023288,2]
[341643261,1731055848846,-500.0,0.00023288,2]
[341643262,1731055848855,-500.0,0.00023288,2]
[341643263,1731055848864,-500.0,0.00023288,2]
[341643264,1731055848873,-500.0,0.00023288,2]
[341643265,1731055848882,-500.0,0.00023288,2]
[341643266,1731055848893,-500.0,0.00023288,2]
[341643267,1731055848902,-500.0,0.00023288,2]
[341643268,1731055848911,-500.0,0.00023288,2]
[341643269,1731055848919,-500.0,0.00023288,2]
[341643270,1731055848928,-500.0,0.00023288,2]
[341643271,1731055848938,-500.0,0.00023288,2]
[341643272,1731055848947,-500.0,0.00023288,2]
[341643273,1731055848956,-500.0,0.00023288,2]
[341643274,1731055848965,-500.0,0.00023288,2]
[341643275,1731055848975,-500.0,0.00023288,2]
[341643276,1731055848986,-500.0,0.00023288,2]
[341643277,1731055848996,-500.0,0.00023288,2]
[341643278,1731055849005,-500.0,0.00023288,2]
[341643279,1731055849014,-500.0,0.00023288,2]
[341643280,1731055849024,-500.0,0.00023288,2]
[341643281,1731055849032,-500.0,0.00023288,2]
[341643282,1731055849041,-500.0,0.00023288,2]
[341643283,1731055849051,-500.0,0.00023288,2]
[341643284,1731055849060,-500.0,0.00023288,2]
[341643285,1731055849069,-500.0,0.00023288,2]
[341643286,1731055849078,-500.0,0.00023288,2]
[341643287,1731055849087,-500.0,0.00023288,2]
[341643288,1731055849096,-500.0,0.00023288,2]
[341643289,1731055849106,-500.0,0.00023288,2]
[341643290,1731055849114,-500.0,0.00023288,2]
[341643291,1731055849123,-500.0,0.00023288,2]
[341643292,1731055849132,-500.0,0.00023288,2]
[341643293,1731055849141,-500.0,0.00023288,2]
[341643294,1731055849149,-500.0,0.00023288,2]
[341643295,1731055849159,-500.0,0.00023288,2]
[341643296,1731055849167,-500.0,0.00023288,2]
[341643297,1731055849176,-500.0,0.00023288,2]
[341643298,1731055849186,-500.0,0.00023288,2]
[341643299,1731055849195,-500.0,0.00023288,2]
[341643300,1731055849204,-500.0,0.00023288,2]
[341643301,1731055849213,-500.0,0.00023288,2]
[341643302,1731055849222,-500.0,0.00023288,2]
[341643303,1731055849233,-631.87221476,0.00023288,2]
[341643304,1731055849243,-500.0,0.00023288,2]
[341643305,1731055849252,-500.0,0.00023288,2]
[341643306,1731055849261,-500.0,0.00023288,2]
[341643307,1731055849271,-500.0,0.00023288,2]
[341643308,1731055849280,-500.0,0.00023288,2]
[341643309,1731055849290,-500.0,0.00023288,2]
[341643310,1731055849299,-450.0,0.00023288,2]
[341643311,1731055849308,-500.0,0.00023288,2]
[341643312,1731055849318,-500.0,0.00023288,2]
[341643313,1731055849328,-500.0,0.00023288,2]
[341643314,1731055849337,-601.105262,0.00023288,7]
[341643315,1731055849347,-1270.564209,0.00023288,7]
[341643316,1731055849357,-601.105262,0.00023288,7]
[341643317,1731055849367,-416.907265,0.00023288,7]
[341643318,1731055849377,-416.907265,0.00023288,7]
[341643319,1731055849387,-151.0,0.00023288,7]
[341643320,1731055849396,-959.42890957,0.0002329,2]
[341643321,1731055849405,-166.666666,0.00023456,2]
[341643322,1731055849415,-161.06357243,0.00023499,2]
[341643323,1731055849424,-877.93358357,0.00023499,2]
[341643324,1731055849434,-191.99755618,0.000235,30]
[341643325,1731055849444,-321.0,0.00023505,2]
[341643326,1731055849454,-170.2,0.00023509,2]
[341643327,1731055849464,-500.0,0.00023561,2]
[341643328,1731055849474,-500.0,0.00023561,2]
[341643329,1731055849486,-188.46068249,0.00023561,2]
[341643330,1731055849496,-253.763672,0.00023561,7]
[341643331,1731055849505,-500.0,0.00023561,2]
[341643332,1731055849515,-500.0,0.00023561,2]
[341643333,1731055849525,-500.0,0.00023561,2]
[341643334,1731055849534,-406.53195208,0.00023561,2]
[341643335,1731055849543,-500.0,0.00023561,2]
[341643336,1731055849553,-392.67515953,0.00023561,2]
[341643337,1731055849563,-500.0,0.00023561,2]
[341643338,1731055849572,-746.4,0.00023561,2]
[341643339,1731055849581,-500.0,0.00023561,2]
[341643340,1731055849591,-500.0,0.00023561,2]
[341643341,1731055849600,-393.60869827,0.00023561,2]
[341643342,1731055849610,-151.0,0.00023561,7]
[341643343,1731055849619,-151.0,0.00023561,7]
[341643344,1731055849628,-500.0,0.00023561,2]
[341643345,1731055849637,-151.0,0.00023561,7]
[341643346,1731055849651,-500.0,0.00023561,2]
[341643347,1731055849660,-535.79637136,0.00023561,2]
[341643348,1731055849670,-1556.05,0.00023561,2]
[341643349,1731055849679,-570.56,0.00023561,2]
[341643350,1731055849689,-625.89,0.00023561,2]
[341643351,1731055849698,-500.0,0.00023561,2]
[341643352,1731055849707,-793.11,0.00023561,2]
[341643353,1731055849717,-500.0,0.00023561,2]
[341643354,1731055849729,-1474.44,0.00023561,2]
[341643355,1731055849739,-500.0,0.00023561,2]
[341643356,1731055849748,-500.0,0.00023561,2]
[341643357,1731055849758,-738.979995,0.00023561,7]
[341643358,1731055849767,-500.0,0.00023561,2]
[341643359,1731055849777,-175.527622,0.00023561,7]
[341643360,1731055849787,-500.0,0.00023561,2]
[341643361,1731055849796,-175.527622,0.00023561,7]
[341643362,1731055849805,-722.59,0.00023561,2]
[341643363,1731055849815,-500.0,0.00023561,2]
[341643364,1731055849824,-594.47187598,0.00023561,2]
[341643365,1731055849833,-151.0,0.00023561,7]
[341643366,1731055849842,-877.146847,0.00023561,7]
[341643367,1731055849851,-877.146847,0.00023561,7]
[341643368,1731055849860,-556.87,0.00023561,2]
[341643369,1731055849869,-894.925862,0.00023561,7]
[341643370,1731055849879,-894.925862,0.00023561,7]
[341643371,1731055849888,-456.716636,0.00023561,7]
[341643372,1731055849897,-456.716636,0.00023561,7]
[341643373,1731055849906,-150.02,0.00023561,7]
[341643374,1731055849916,-167.59803289,0.00023561,7]
[341643375,1731055849927,-151.0,0.00023561,7]
[341643376,1731055849937,-151.0,0.00023561,7]
[341643377,1731055849946,-1419.72867714,0.00023561,7]
[341643378,1731055850108,-136.47519886,0.00023561,7]
[341643379,1731055850118,-500.0,0.00023561,2]
[341643380,1731055850127,-59.19771358,0.00023561,7]
[341643381,1731055850139,-1000.31051533,0.00023561,7]
[341643382,1731055850511,-3263.91254572,0.00022465,2]
[341643383,1731055850523,-2209.50547563,0.00022465,2]
[341643385,1731055853255,-6274.22197865,0.00022465,2]
[341643386,1731055853264,-11747.64,0.00022739,2]
[341643387,1731055853274,-1916.459308,0.00022739,7]
[341643388,1731055853283,-151.0,0.00022739,7]
[341643389,1731055853293,-1916.459308,0.00022739,7]
[341643390,1731055853302,-11747.64,0.00023013,2]
[341643391,1731055853312,-1916.459308,0.00023013,7]
[341643392,1731055853321,-1916.459308,0.00023013,7]
[341643393,1731055853331,-11747.64,0.00023287,2]
[341643394,1731055853340,-1916.459308,0.00023287,7]
[341643395,1731055853349,-1916.459308,0.00023287,7]
[341643396,1731055853359,-496.69564709,0.00023561,7]
[341643397,1731055853368,-151.0,0.00023561,7]
[341643398,1731055853377,-500.0,0.00023561,2]
[341643399,1731055853386,-910.19,0.00023561,2]
[341643400,1731055853396,-500.0,0.00023561,2]
[341643401,1731055853405,-351.96095807,0.00023561,2]
[341643402,1731055853415,-404.889751,0.00023561,7]
[341643403,1731055853424,-553.56,0.00023561,2]
[341643404,1731055853433,-379.599495,0.00023561,7]
[341643405,1731055853443,-404.889751,0.00023561,7]
[341643406,1731055853452,-379.599495,0.00023561,7]
[341643407,1731055853461,-987.64,0.00023561,2]
[341643408,1731055853470,-307.188296,0.00023561,7]
[341643409,1731055853479,-307.188296,0.00023561,7]
[341643410,1731055853489,-500.0,0.00023561,2]
[341643411,1731055853499,-500.0,0.00023561,2]
[341643412,1731055853508,-500.0,0.00023561,2]
[341643413,1731055853518,-500.0,0.00023561,2]
[341643414,1731055853527,-683.0,0.00023561,2]
[341643415,1731055853536,-500.0,0.00023561,2]
[341643416,1731055853546,-500.0,0.00023561,2]
[341643417,1731055853555,-500.0,0.00023561,2]
[341643418,1731055853565,-684.63,0.00023561,2]
[341643419,1731055853575,-500.0,0.00023561,2]
[341643420,1731055853584,-151.0,0.00023561,7]
[341643421,1731055853594,-1000.37,0.00023561,2]
[341643422,1731055853603,-182.178575,0.00023561,7]
[341643423,1731055853612,-500.0,0.00023561,2]
[341643424,1731055853622,-182.178575,0.00023561,7]
[341643425,1731055853632,-500.0,0.00023561,2]
[341643426,1731055853642,-151.0,0.00023561,7]
[341643427,1731055853653,-249.730646,0.00023561,7]
[341643428,1731055853662,-4039.9,0.00023561,2]
[341643429,1731055853671,-599.6,0.00023561,2]
[341643430,1731055853681,-500.0,0.00023561,2]
[341643431,1731055853692,-774.9,0.00023561,2]
[341643432,1731055853702,-500.0,0.00023561,2]
[341643433,1731055853712,-151.0,0.00023561,7]
[341643434,1731055853721,-342.790446,0.00023561,7]
[341643435,1731055853732,-500.0,0.00023561,2]
[341643436,1731055853743,-500.0,0.00023561,2]
[341643437,1731055853753,-342.790446,0.00023561,7]
[341643438,1731055853763,-388.683511,0.00023561,7]
[341643439,1731055853773,-388.683511,0.00023561,7]
[341643440,1731055853783,-548.93722244,0.00023561,2]
[341643441,1731055853793,-500.0,0.00023561,2]
[341643442,1731055853803,-157.200074,0.00023561,7]
[341643443,1731055853812,-157.200074,0.00023561,7]
[341643444,1731055853822,-509.84,0.00023561,2]
[341643445,1731055853831,-491.96999486,0.00023561,2]
[341643446,1731055853840,-190.608239,0.00023561,7]
[341643447,1731055853849,-245.787143,0.00023561,7]
[341643448,1731055853859,-190.608239,0.00023561,7]
[341643449,1731055853868,-374.80031547,0.00023561,2]
[341643450,1731055853877,-500.0,0.00023561,2]
[341643451,1731055853887,-500.0,0.00023561,2]
[341643452,1731055853896,-500.0,0.00023561,2]
[341643453,1731055853905,-500.0,0.00023561,7]
[341643454,1731055853914,-150.02,0.00023561,2]
[341643455,1731055853923,-1236.91,0.00023561,2]
[341643456,1731055853932,-150.75722712,0.00023561,7]
[341643457,1731055853942,-151.0,0.00023561,7]
[341643458,1731055853951,-155.67606356,0.00023561,7]
[341643459,1731055853960,-4739.43,0.00023561,2]
[341643460,1731055853970,-151.0,0.00023561,7]
[341643461,1731055853980,-500.0,0.00023561,2]
[341643462,1731055853991,-3240.68,0.00023561,2]
[341643463,1731055854002,-500.0,0.00023561,2]
[341643464,1731055854011,-237.6777587,0.00023561,2]
[341643465,1731055854100,-500.0,0.00023561,2]
[341643466,1731055854110,-1106.55,0.00023561,2]
[341643467,1731055854119,-9681.86,0.00023561,2]
[341643468,1731055854128,-5122.09,0.00023561,2]
[341643469,1731055854137,-6481.53892233,0.00023561,2]
[341643471,1731056061284,162.57509,0.00013973,2]
[341643488,1731056452865,340.8,0.00020843,2]
[341643489,1731056458463,267.1925,0.00020713,2]
[341643493,1731056810200,49917.0,0.00032197,30]
[341643872,1731056965170,694.44444444,0.00020843,2]
[341643882,1731057031788,-410.14687792,0.00021817,2]
[341643883,1731057031799,-839.5002959,0.00021817,2]
[341643884,1731057031809,-300.0,0.00021915,2]
[341643885,1731057031819,-160.21241916,0.00021916,2]
[341643886,1731057031828,-500.0,0.00021916,2]
[341643887,1731057031838,-607.64058229,0.00021916,2]
[341643888,1731057031848,-300.0,0.00021916,2]
[341643889,1731057031858,-549.06880751,0.00021917,2]
[341643890,1731057031868,-15.02141693,0.00021917,2]
[341643941,1731057038026,-500.0,0.00021917,2]
[341643943,1731057038036,-628.56391685,0.00021917,2]
[341643945,1731057038046,-500.0,0.00021917,2]
[341643947,1731057038055,-500.0,0.00021917,2]
[341643950,1731057038064,-532.19404274,0.00021917,2]
[341643953,1731057038074,-500.0,0.00021917,2]
[341643956,1731057038083,-500.0,0.00021917,2]
[341643959,1731057038092,-500.0,0.00021917,2]
[341643961,1731057038101,-500.0,0.00021917,2]
[341643963,1731057038111,-500.0,0.00021917,2]
[341643965,1731057038119,-500.0,0.00021917,2]
[341643967,1731057038129,-653.1,0.00021917,2]
[341643969,1731057038143,-500.0,0.00021917,2]
[341643971,1731057038152,-500.0,0.00021917,2]
[341643973,1731057038161,-626.03469072,0.00021917,2]